Cogmind - Beta 17 @@@ ROGUE MODE // 2026.07.31 @ 03:23:31 Player: Mat Result: Self-destructed Performance ------------- Evolutions (1) 500 Regions Visited (2) 400 Robots Destroyed (28) 140 Value Destroyed (525) 525 Prototype IDs (0) 0 Alien Tech Used (0) 0 Bonus (0) 0 TOTAL SCORE: 1565 Bonus ------- None Cogmind --------- Core Integrity 328/400 Matter 240/300 Energy 8/100 System Corruption 0% Temperature Cool (0) Movement Treading (160) Location -9/Materials Parts ------- > --- POWER (1) -------- (None) > --- PROPULSION (2) --- Light Treads > --- UTILITY (4) ------ Improved Heat Sink Structural Scanner Seismic Detector Targeting Computer > --- WEAPON (2) ------- EM Shotgun Medium Laser > --- INVENTORY (5) ---- Hover Unit Authchip [Power] Datajack Peak State ------------ > --- POWER ------------ Light Ion Engine > --- PROPULSION ------- Light Treads Light Treads > --- UTILITY ---------- Improved Heat Sink Structural Scanner Seismic Detector Targeting Computer > --- WEAPON ----------- EM Shotgun Medium Laser > --- INVENTORY -------- Hover Unit Authchip [Power] Datajack [Rating: 12] Favorites ----------- Power Light Ion Engine Engine Light Ion Engine Propulsion Light Treads Treads Light Treads Utility Targeting Computer Device Seismic Detector Storage Small Storage Unit Processor Targeting Computer Weapon Medium Laser Energy Gun Medium Laser Ballistic Gun Light Assault Rifle Special Melee Weapon Datajack Build | -11 -10 -9 ------- Run | Yrd Mat Mat Slots Evolved 2 | . . 2 Power . | . . . Propulsion . | . . . Utility 2 | . . 2 Weapon . | . . . Parts Attached 16 | 8 6 2 Power 2 | 1 1 . Engine 2 | 1 1 . Core . | . . . Reactor . | . . . Propulsion 2 | 2 . . Treads 2 | 2 . . Leg . | . . . Wheel . | . . . Hover . | . . . Flight . | . . . Utility 6 | 3 2 1 Device 4 | 2 1 1 Storage 1 | 1 . . Processor 1 | . 1 . Hackware . | . . . Protection . | . . . Artifact . | . . . Weapon 6 | 2 3 1 Energy Gun 3 | . 2 1 Energy Cannon . | . . . Ballistic Gun 2 | 2 . . Ballistic Cannon . | . . . Launcher . | . . . Special Weapon . | . . . Impact Weapon . | . . . Slashing Weapon . | . . . Piercing Weapon . | . . . Special Melee Weapon 1 | . 1 . Unidentified Prototypes . | . . . Parts Lost 2 | . . 2 Power 1 | . . 1 Propulsion 1 | . . 1 Utility . | . . . Weapon . | . . . Highest Loss Streak 1 | . . 1 To Critical Strikes . | . . . Average Backups 3 | 1 3 3 Power . | . . . Propulsion . | . . 1 Utility 2 | . 2 1 Weapon . | . . . Tool/Special . | . . . Unused Backups 4 | . 2 2 Power . | . . . Propulsion 1 | . . 1 Utility 3 | . 2 1 Weapon . | . . . Tool/Special . | . . . Average Slot Usage (%) 99 | . 99 97 Engine 13 | . 14 9 Treads 26 | . 28 22 Device 18 | . 14 32 Processor 12 | . 12 11 Energy Gun 18 | . 17 22 Ballistic Gun 7 | . 9 . Peak Build Rating 12 | 9 9 12 Average Rating 7 | 5 7 11 On Entrance 5 | . 9 8 Avg Prop Armor Cover (%) . | . . . Naked Turns . | . . . Heaviest Build 11 | 11 8 11 Greatest Support 40 | 40 40 40 Greatest Overweight (x) . | . . . Average Overweight (x) . | . . . Largest Inventory Capacity 8 | 8 5 5 Average Capacity 5 | 6 5 5 Most Carried 5 | 5 5 4 Average Carried 3 | 1 3 3 Final Capacity 5 | 5 5 5 Final Carried 5 | 1 5 3 Class Distribution -------------------- 100% | Mutant Dominant Class ---------------- Mutant | -10/Materials Mutant | -9/Materials Resources | -11 -10 -9 ----------- Run | Yrd Mat Mat Matter Collected 482 | 313 169 . Remotely . | . . . Salvage Created 849 | 106 479 264 Parts 45 | 6 25 14 Haulers Intercepted 2 | . 2 . Recyclers Shooed 1 | . 1 . Parts Field Recycled . | . . . Retrieved Matter . | . . . Parts Self-Destructed . | . . . Prevented . | . . . Parts Restored . | . . . Kills | -11 -10 -9 ------- Run | Yrd Mat Mat Combat Hostiles Destroyed 14 | . 8 6 Guns 12 | . 8 4 AOE 2 | . . 2 Classes Destroyed 10 | 2 6 2 Worker 2 | . 1 1 Builder 2 | . 2 . Tunneler 3 | 2 1 . Hauler 2 | . 2 . Recycler 2 | 1 . 1 Operator 1 | . 1 . Watcher 2 | . . 2 Swarmer 5 | . 3 2 Grunt 8 | . 5 3 Duelist 1 | . . 1 Best Kill Streak 8 | 2 3 8 Combat Bots Only 4 | . 3 4 Max Kills in Single Turn 4 | 1 2 4 Gunslinging 1 | . 1 . Exploded 2 | . . 2 Melee . | . . . Uniques/NPCs Destroyed . | . . . Combat | -11 -10 -9 -------- Run | Yrd Mat Mat Hostile Shots Fired 72 | . 33 39 Missed 20 | . 8 12 Hits 52 | . 25 27 Melee 1 | . . 1 Projectile 51 | . 25 26 Damage Taken 633 | . 317 316 Core 107 | . 35 72 Absorbed by Shields . | . . . Core Remaining (%) 93 | 100 86 . Volleys Fired 81 | 6 54 21 Largest 2 | 2 2 2 Hottest 100 | 40 100 95 Shots Fired 158 | 12 108 38 Gun 158 | 12 108 38 Cannon . | . . . Launcher . | . . . Special . | . . . Kinetic 66 | 12 54 . Thermal 75 | . 54 21 Explosive . | . . . Electromagnetic 17 | . . 17 Robot Hit Streak 10 | 8 8 10 Robot Miss Streak 4 | 1 4 4 Penetration Max . | . . . Secondary Targets 3 | . 1 2 Max Gunslinging Chain 1 | . 1 1 Shots Hit Robots 104 | 9 69 26 Core Hits 45 | 4 28 13 Critical Kills . | . . . Critical Parts Destroyed 1 | . 1 . Critical Strikes 6 | . 4 2 Burn 5 | . 3 2 Destroy 1 | . 1 . Melee Attacks 6 | . 6 . Impact . | . . . Slashing . | . . . Piercing . | . . . Sneak Attacks . | . . . Combat Hostiles . | . . . Follow-up Attacks . | . . . Damage Inflicted 1677 | 103 778 796 Guns 1194 | 103 778 313 Cannons . | . . . Explosions 483 | . . 483 Melee . | . . . Ramming . | . . . Kinetic 435 | 103 332 . Thermal 609 | . 446 163 Explosive 455 | . . 455 Electromagnetic 178 | . . 178 Impact . | . . . Slashing . | . . . Piercing . | . . . Highest Corruption . | . . . Average Corruption . | . . . Corruption Purged . | . . . Corruption Blocked . | . . . Overload Shots . | . . . Overflow Damage 49 | . . 49 Projectiles . | . . . Explosions 49 | . . 49 Melee . | . . . Knockbacks . | . . . Impact . | . . . Kinetic . | . . . Secondary . | . . . Self-Inflicted Damage 57 | . . 57 Shots 2 | . . 2 Rammed . | . . . Targets Rammed . | . . . Kicked . | . . . Crushed . | . . . Highest Temperature 318 | . 318 6 Average Temperature 69 | . 70 6 Received Heat Transfer 210 | . 165 45 Siege Activations . | . . . Martial Activations . | . . . Shielding Activations . | . . . Robots Disrupted . | . . . Combat Hostiles . | . . . Robots Corrupted . | . . . Combat Hostiles . | . . . Parts Fried . | . . . Impact Corruptions . | . . . Robots Melted . | . . . Combat Hostiles . | . . . Parts Melted 5 | . 4 1 Heat Transferred 2159 | . 1554 605 Parts Sabotaged . | . . . Parts Stolen . | . . . Parts Stripped . | . . . Power Chain Reactions 1 | . . 1 Alert | -11 -10 -9 ------- Run | Yrd Mat Mat Maximum Alert Level 1 | . . 1 Low Security (%) 97 | 100 100 84 Level 1 2 | . . 15 Level 2 . | . . . Level 3 . | . . . Level 4 . | . . . Level 5 . | . . . High Security . | . . . Max Security . | . . . Peak Influence 224 | 10 96 224 Initial 22 | . . 22 Average 26 | . 17 80 Influence Increases 577 | 15 270 292 Destroy 0b10 Robot/C 280 | . 160 120 Destroy 0b10 Robot/NC 70 | 15 35 20 Destroy Leader 78 | . 54 24 Successful Hack 31 | . 5 26 Disable Machine 30 | . . 30 Destroy Structure 58 | . 1 57 Lose Combat Pursuer 30 | . 15 15 Influence Decreases 383 | 15 217 151 Entered New Map 31 | . . 31 Time Decay 332 | 15 217 100 Lost Part 20 | . . 20 Squads Dispatched 3 | . 2 1 Investigation . | . . . Extermination . | . . . Reinforcement 3 | . 2 1 Assault . | . . . Garrison . | . . . Intercept . | . . . Searches Triggered . | . . . Construction Impeded . | . . . Haulers Reinforced . | . . . Active Scanning Responses . | . . . Cargo Convoy Interrupts . | . . . Stealth | -11 -10 -9 --------- Run | Yrd Mat Mat Distress Signals 2 | . . 2 Communications Jammed . | . . . Distress Signals . | . . . Times Spotted 25 | . 14 11 Peak Tracking Total 4 | . 3 4 Tactical Retreats 2 | . 1 1 Traps | -11 -10 -9 ------- Run | Yrd Mat Mat Traps Triggered . | . . . Indirectly . | . . . Trap Hack Attempts . | . . . Triggered . | . . . Disarmed . | . . . Reprogrammed . | . . . Reused . | . . . Traps Extracted . | . . . Installed . | . . . Triggered . | . . . Machines | -11 -10 -9 ---------- Run | Yrd Mat Mat Machines Disabled 2 | . . 2 Max in Single Turn 1 | . . 1 Machines Repaired . | . . . Machines Dismantled . | . . . Machines Sabotaged . | . . . Overloaded Fab Kills . | . . . Hacking | -11 -10 -9 --------- Run | Yrd Mat Mat Machines Accessed 7 | . 5 2 Terminals 6 | . 4 2 Fabricators . | . . . Repair Stations . | . . . Recycling Units 1 | . 1 . Scanalyzers . | . . . Garrison Access . | . . . Total Hacks 14 | . 10 4 Successful 7 | . 5 2 Failed 7 | . 5 2 Catastrophic . | . . . Database Lockouts . | . . . Manual 1 | . 1 . Terminals 13 | . 9 4 Fabricators . | . . . Repair Stations . | . . . Recycling Units 1 | . 1 . Scanalyzers . | . . . Garrison Access . | . . . Terminal Hacks 6 | . 4 2 Record 3 | . 1 2 Terminal Index 1 | . 1 . Alert Level 1 | . 1 . Locate Traps 1 | . 1 . Fabricator Hacks . | . . . Repair Station Hacks . | . . . Recycling Unit Hacks 1 | . 1 . Retrieve Components 1 | . 1 . Scanalyzer . | . . . Garrison Access Hacks . | . . . Unauthorized Hacks . | . . . Terminals . | . . . Fabricators . | . . . Repair Stations . | . . . Recycling Units . | . . . Scanalyzers . | . . . Garrison Access . | . . . Data Cores Recovered . | . . . Used . | . . . Hacking Detections 6 | . 5 1 Full Trace Events . | . . . Feedback Events . | . . . Feedback Blocked . | . . . Robot Schematics Acquired . | . . . Robots Built . | . . . Authchips . | . . . Time . | . . . Total Robot Build Rating . | . . . Part Schematics Acquired . | . . . Parts Built . | . . . Authchips . | . . . Time . | . . . Total Part Build Rating . | . . . Part Studies Acquired . | . . . Parts Repaired . | . . . Time . | . . . Parts Recycled . | . . . Recycled Matter . | . . . Retrieved Matter . | . . . Retrieved Components 3 | . 3 . Parts Scanalyzed . | . . . Part Schematics Acquired . | . . . Parts Damaged . | . . . Bothacking | -11 -10 -9 ------------ Run | Yrd Mat Mat Used RIF Installer . | . . . Robots Hacked 1 | . 1 . Non-combat . | . . . Combat 1 | . 1 . Robot Hacks Applied 1 | . 1 . parse_system 1 | . 1 . Relay Couplers Released . | . . . Fabnet Peak Effective % . | . . . Robots Rewired . | . . . Allies Hacked . | . . . Hacks Repelled . | . . . Allies | -11 -10 -9 -------- Run | Yrd Mat Mat Total Allies . | . . . Largest Group . | . . . Highest-Rated Group . | . . . Highest-Rated Ally . | . . . Total Orders . | . . . Ally Attacks . | . . . Total Damage . | . . . Kills . | . . . Allies Corrupted . | . . . Allies Melted . | . . . Intel | -11 -10 -9 ------- Run | Yrd Mat Mat Active Infowar (turns) 1209 | 21 977 211 Terrain 82 | 20 62 . Structural 589 | . 378 211 Seismic 830 | 21 599 210 Robot Analysis Total . | . . . Derelict Logs Recovered . | . . . Drone Launches . | . . . Drone Recoveries . | . . . Exploration | -11 -10 -9 ------------- Run | Yrd Mat Mat Turns Passed 1314 | 126 977 211 Spaces Moved 557 | 82 400 75 Core 36 | 36 . . Treads 521 | 46 400 75 Legs . | . . . Wheels . | . . . Hover . | . . . Flight . | . . . Fastest Speed 50 | 50 160 160 Average Speed 152 | 111 160 160 Slowest Speed 160 | 160 160 160 Overloaded Moves . | . . . Propulsion Burnouts . | . . . Robots Hopped . | . . . Potential Cave-ins . | . . . Cave-ins Triggered . | . . . Exploration Rate (%) 26 | 5 60 13 Regions Visited 2 Branch Regions . Pre-discovered Areas . | . . . Known Exits Taken . | . . . Unknown Exits Taken 2 | 1 1 . Scrap Searched . | . . . Spaces Dug . | . . . Terrain Destroyed 67 | . . 67 Melee . | . . . Projectile . | . . . AOE 67 | . . 67 Terrain Rammed . | . . . Walls Destroyed . | . . . Machines Disabled . | . . . Actions | -11 -10 -9 --------- Run | Yrd Mat Mat Total 867 | 107 632 128 Wait 175 | . 147 28 Move 555 | 81 399 75 Hop . | . . . Pick Up 16 | 7 9 . Fast Attach 3 | 1 1 1 Attach 13 | 9 2 2 Detach 4 | 3 1 . Swap 6 | . 6 . Drop 8 | . 7 1 Fire 81 | 6 54 21 Melee 6 | . 6 . Ram . | . . . Kick . | . . . Crush . | . . . Escape Stasis . | . . . Rewire . | . . . Trap . | . . . Miscellaneous . | . . . Route ------- -11/Scrapyard -10/Materials (discovered 2 exits: *Mat / [*Min]) -9/Materials History --------- Turn | Location | Event 12 | -11/Scrapyard | Discovered new exit (range 16) 127 | -11/Scrapyard | Entered Materials 306 | -10/Materials | Build established: Mutant 741 | -10/Materials | Discovered new exit (range 6) 901 | -10/Materials | Discovered new exit (range 16) 1104 | -10/Materials | Entered another Materials area 1104 | -9/Materials | Evolved 2 slots: Utility x2 1315 | -9/Materials | Self-destructed Last Messages --------------- 01292_ R-06 Scavenger collects Com. Wheel. 01293_ U-05 Engineer builds a Wall. 01295_ K-01 Serf collects debris. 01297_ U-05 Engineer lays Concrete. 01297_ R-06 Scavenger collects Wheel. 01298_ K-01 Serf collects debris. 01298_ U-05 Engineer lays Concrete. 01298_ K-01 Serf collects debris. 01299_ U-05 Engineer lays Concrete. 01300_ U-05 Engineer builds a Wall. 01300_ U-05 Engineer lays Concrete. 01301_ U-05 Engineer builds a Wall. 01302_ K-01 Serf collects debris. 01302_ U-05 Engineer lays Concrete. 01305_ The unstable cave ceiling collapses. 01306_ K-01 Serf collects debris. 01311_ U-05 Engineer lays Concrete. 01312_ Lgt. Treads destroyed. 01312_ K-01 Serf collects debris. 01313_ U-05 Engineer lays Concrete. Map ----- +----------------------------------------------------+ | ?????????????????## # + """ ##?????? | | ?????????????????## # # "Y" """ ##?????? | | ?????????????????## + # """ ##?????? | | ?????????????????## # # ##?????? | | ?????????????????## ""T"" # ######+#####?????? | | ?????????????????## """"" # # ####?????? | | ?????????????????## # # """ ""##???????? | | ?????????????????############ + """ T"##???????? | | ?????????????????############% %# """ ""##???????? | | ??????????????????????????### # ##???????? | | ????????????????????######### ##########???????? | | ????????????????????######### # ###???????? | | ????????????????????## # # """##????????? | | ????????????????????## # # """##????????? | | ???????????????????### """ + + """##????????? | | ????????????????###### """ # # ##????????? | | ?????????????######### """ # # ##????????? | | ?????????????##### ## #########????????? | | ????????????### ###### #########????????? | | ????????????#### % k # ##???????????????? | | ???????????? %+ # ##???????????????? | | ????????????#### u + ##???????????????? | | ????????????## # # ##???????????????? | | ????????????## % #= ##???????????????? | | ????????????### #s# #% ##???????????????? | | ?????????????### ####@### %# ???????????????? | | ?????????????"" # # """ # %# ???????????????? | | ??????????????? ###### """ # # ???????????????? | | ??????????????? ###### """ +" + ???????????????? | | ????????????????????## #%" # ???????????????? | | ????????????????????## #" # ""?????????????? | | ????????????????????## # ####?????????????? | | ????????????????????######### ####?????????????? | | ???????????????????? # ##???????????????? | | ????????????????????????????? ##???????????????? | | ????????????????????????????? ##???????????????? | | ?????????????????????????????? ???????????????? | | ?????????????????????????????????????????????????? | | ?????????????????????????????????????????????????? | | ?????????????????????????????????????????????????? | | ?????????????????????????????????????????????????? | | ?????????????????????????????????????????????????? | | ?????????????????????????????????????????????????? | | ?????????????????????????????????????????????????? | | ?????????????????????????????????????????????????? | | ?????????????????????????????????????????????????? | | ?????????????????????????????????????????????????? | | ?????????????????????????????????????????????????? | | ?????????????????????????????????????????????????? | | ?????????????????????????????????????????????????? | +----------------------------------------------------+ Best States ------------- Heat Dissipation 42 Energy Generation 10 Energy Capacity 125 Matter Stores 300 Matter Capacity 300 Sight Range 16 Terrain Scan Range 16 Terrain Scan Density 10 Evasion (%) 50 Targeting Accuracy 5 Recoil Reduction 2 Authchip Count 1 Item Schematics ----------------- None Robot Schematics ------------------ None Fabricated ------------ Nothing Repaired ---------- Nothing Studied --------- None Alien Tech Used ----------------- None Achievements -------------- None Challenges ------------ None Game ------ Seed BehemothHeavySabre Manual? 0 Play Time 00:30:22 Cumulative 10.2 hours Start 2026.07.31 @ 02:49:54 End 2026.07.31 @ 03:23:31 Sessions 1 Manual Loads 0 Difficulty Rogue Special Mode None Game No. 21 Rogue 3 Adventurer 18 Explorer 0 Win Type - Total 0 Types 0/0/0/0/0/0/0/0/0/0 Lore% 2 Gallery% 7 Achievement% 10 Wizard Run 0 Options --------- Layout 0 ASCII 0 Keyboard 0 Movement Mouse Keybinds 0 Fullscreen 1 Font 20/Terminus Map View 33x25 Zoom Use 88% Tactical HUD 1 Map Filters NONE Filters NONE Steam 1 RUN: 2d985e63-d582-4331-8f2c-90624c33601e